Workbook

Sheet RESUMO
A1: PLANILHA ORÇAMENTARIA
A2: ='PLANILHA PADRÃO'!A6:F6 -> OBRA: CONTRATAÇÃO DE EMPRESA ESPECIALIZADA PARA EXECUÇÃO DA OBRA DE REFORMA DO CENTRO COMUNITÁRIO SANTA LUZIA
A3: ='PLANILHA PADRÃO'!A7:F7 -> UNIDADE OPERACIONAL: SESI ESCOLA VÁRZEA GRANDE (OBRA REFORMA CENTRO COMUNITÁRIO STA LUZIA)
A4: ='PLANILHA PADRÃO'!A8:F8 -> ENDEREÇO: AV. RUA MÁRIO DE ALMEIDA, LOTE 06, SANTA LUZIA CIDADE: VÁRZEA GRANDE/MT
A5: CONSTRUTORA:
A6: RESPONSÁVEL TÉCNICO:
A7: PLANILHA RESUMO
A8: ITEM | B8: DESCRIÇÃO | E8: Valor Total (R$)
A10: PLANILHA RESUMO - SESI ESCOLA VÁRZEA GRANDE (OBRA REFORMA CENTRO COMUNITÁRIO STA LUZIA)
A11: 1 | B11: ='CRONOGRAMA FISICO-FINANCEIRO'!B13 -> ADMINISTRAÇÃO DE OBRA | E11: ='CRONOGRAMA FISICO-FINANCEIRO'!C13 -> 20018.48
A13: 2 | B13: ='CRONOGRAMA FISICO-FINANCEIRO'!B14 -> CANTEIRO DE OBRAS | E13: ='CRONOGRAMA FISICO-FINANCEIRO'!C14 -> 12916.63
A15: 3 | B15: ='CRONOGRAMA FISICO-FINANCEIRO'!B15 -> DEMOLIÇÕES | E15: ='CRONOGRAMA FISICO-FINANCEIRO'!C15 -> 10226.54
A17: 4 | B17: ='CRONOGRAMA FISICO-FINANCEIRO'!B16 -> FECHAMENTO | E17: ='CRONOGRAMA FISICO-FINANCEIRO'!C16 -> 3309.67
A19: 5 | B19: ='CRONOGRAMA FISICO-FINANCEIRO'!B17 -> REVESTIMENTO INTERNO E EXTERNO | E19: ='CRONOGRAMA FISICO-FINANCEIRO'!C17 -> 22968.3
A21: 6 | B21: ='CRONOGRAMA FISICO-FINANCEIRO'!B18 -> COBERTURA | E21: ='CRONOGRAMA FISICO-FINANCEIRO'!C18 -> 45262.32
A23: 7 | B23: ='CRONOGRAMA FISICO-FINANCEIRO'!B19 -> PISO | E23: ='CRONOGRAMA FISICO-FINANCEIRO'!C19 -> 22682.11
A25: 8 | B25: ='CRONOGRAMA FISICO-FINANCEIRO'!B20 -> ESQUADRIA | E25: ='CRONOGRAMA FISICO-FINANCEIRO'!C20 -> 22856.62
A27: 9 | B27: ='CRONOGRAMA FISICO-FINANCEIRO'!B21 -> PINTURA INTERNA E EXTERNA | E27: ='CRONOGRAMA FISICO-FINANCEIRO'!C21 -> 52405.06
A29: 10 | B29: ='CRONOGRAMA FISICO-FINANCEIRO'!B22 -> INSTALAÇÕES SANITÁRIAS | E29: ='CRONOGRAMA FISICO-FINANCEIRO'!C22 -> 14593.99
A31: 11 | B31: ='CRONOGRAMA FISICO-FINANCEIRO'!B23 -> INSTALAÇÕES HIDRÁULICAS | E31: ='CRONOGRAMA FISICO-FINANCEIRO'!C23 -> 17769.84
A33: 12 | B33: ='CRONOGRAMA FISICO-FINANCEIRO'!B24 -> INSTALAÇÕES ELÉTRICAS | E33: ='CRONOGRAMA FISICO-FINANCEIRO'!C24 -> 16808.28
A35: 13 | B35: ='CRONOGRAMA FISICO-FINANCEIRO'!B25 -> SERVIÇOS COMPLEMENTARES | E35: ='CRONOGRAMA FISICO-FINANCEIRO'!C25 -> 4841.12
A37: 14 | B37: ='CRONOGRAMA FISICO-FINANCEIRO'!B26 -> LIMPEZA FINAL DE OBRA | E37: ='CRONOGRAMA FISICO-FINANCEIRO'!C26 -> 738.71
A39: VALOR TOTAL DA OBRA SESI ESCOLA VÁRZEA GRANDE (OBRA REFORMA CENTRO COMUNITÁRIO STA LUZIA) | E39: =SUM(E11:E38) -> 267397.67

Sheet PLANILHA PADRÃO
A1: PLANILHA ORÇAMENTARIA | D1: SPN-FF-003
D3: Folha: 1 de 1 | E3: Revisão: 02 | F3: Data: 07/10/19
A5: SESI - SERVIÇO SOCIAL DA INDUSTRIA/DR-MT
A6: OBRA: CONTRATAÇÃO DE EMPRESA ESPECIALIZADA PARA EXECUÇÃO DA OBRA DE REFORMA DO CENTRO COMUNITÁRIO SANTA LUZIA
A7: UNIDADE OPERACIONAL: SESI ESCOLA VÁRZEA GRANDE (OBRA REFORMA CENTRO COMUNITÁRIO STA LUZIA)
A8: ENDEREÇO: AV. RUA MÁRIO DE ALMEIDA, LOTE 06, SANTA LUZIA CIDADE: VÁRZEA GRANDE/MT
A9: CONSTRUTORA:
A10: RESPONSÁVEL TÉCNICO:
A12: ITEM | B12: DESCRIÇÃO | C12: UNID. | D12: QUANT. | E12: Valor UNIT. (R$) | F12: Valor Total (R$)
A14: 1 | B14: ADMINISTRAÇÃO DE OBRA | F14: =SUBTOTAL(9,F15:F16) -> 20018.48
A15: 1.1 | B15: ENGENHEIRO CIVIL DE OBRA JUNIOR COM ENCARGOS COMPLEMENTARES | C15: H | D15: 88 | E15: 113.37 | F15: =ROUND(D15*E15,2) -> 9976.56
A16: 1.2 | B16: ENCARREGADO GERAL DE OBRAS COM ENCARGOS COMPLEMENTARES | C16: MES | D16: 2 | E16: 5020.96 | F16: =ROUND(D16*E16,2) -> 10041.92
A18: 2 | B18: CANTEIRO DE OBRAS | F18: =SUBTOTAL(9,F19:F23) -> 12916.63
A19: 2.1 | B19: PLACA DE OBRA EM CHAPA DE AÇO GALVANIZADA, INSTALADA | C19: M2 | D19: 3.13 | E19: 371.44 | F19: 1162.61
A20: 2.2 | B20: LOCAÇÃO DE CONTAINER (MOBILIZAÇÃO E DESMOBILIZAÇÃO) | C20: MÊS | D20: 2 | E20: 1071.52 | F20: =ROUND(D20*E20,2) -> 2143.04
A21: 2.3 | B21: TAPUME COM COMPENSADO DE MADEIRA. AF_05/2018 - alterei a quantidade considerando apenas o lado que o muro está caído: 64m² | C21: M2 | D21: 64 | E21: 110.79 | F21: 7090.56
A22: 2.4 | B22: DESPESA MENSAL COM CONSUMO DE ÁGUA | C22: MÊS | D22: 2 | E22: 159.06 | F22: =ROUND(D22*E22,2) -> 318.12
A23: 2.5 | B23: CONSUMO MENSAL DE ENERGIA ELÉTRICA | C23: MÊS | D23: 2 | E23: 1101.15 | F23: 2202.3
A25: 3 | B25: DEMOLIÇÕES | F25: =SUBTOTAL(9,F26:F40) -> 10226.54
A26: 3.1 | B26: DEMOLIÇÃO DE ALVENARIA DE BLOCO FURADO, DE FORMA MANUAL, SEM REAPROVEITAMENTO. AF_12/2017 | C26: M3 | D26: 3.01 | E26: 49.97 | F26: 150.41
A27: 3.2 | B27: REMOÇÃO DE PORTAS, DE FORMA MANUAL, SEM REAPROVEITAMENTO. AF_12/2017 | C27: M2 | D27: 15.96 | E27: 8.14 | F27: 129.91
A28: 3.3 | B28: REMOÇÃO DE JANELAS, DE FORMA MANUAL, SEM REAPROVEITAMENTO. AF_12/2017 | C28: M2 | D28: 15 | E28: 30.15 | F28: 452.25
A29: 3.4 | B29: REMOÇÃO DE TELHAS, DE FIBROCIMENTO, METÁLICA E CERÂMICA, DE FORMA MANUAL, SEM REAPROVEITAMENTO. AF_12/2017 | C29: M2 | D29: 170.68 | E29: 3.12 | F29: 532.52
A30: 3.5 | B30: REMOÇÃO DE LOUÇAS, DE FORMA MANUAL, SEM REAPROVEITAMENTO. AF_12/2017 | C30: UN | D30: 6 | E30: 10.86 | F30: 65.16
A31: 3.6 | B31: REMOÇÃO DE TUBULAÇÕES (TUBOS E CONEXÕES) DE ÁGUA FRIA, DE FORMA MANUAL, SEM REAPROVEITAMENTO. AF_12/2017 | C31: M | D31: 50 | E31: 0.43 | F31: 21.5
A32: 3.7 | B32: LIMPEZA MANUAL DE VEGETAÇÃO EM TERRENO COM ENXADA.AF_05/2018 | C32: M2 | D32: 173.34 | E32: 3.05 | F32: 528.69
A33: 3.8 | B33: LIMPEZA DE SUPERFÍCIE COM JATO DE ALTA PRESSÃO. AF_04/2019 | C33: M2 | D33: 500 | E33: 1.73 | F33: =ROUND(D33*E33,2) -> 865
A34: 3.9 | B34: DEMOLIÇÃO DE REVESTIMENTO CERÂMICO, DE FORMA MANUAL, SEM REAPROVEITAMENTO. AF_12/2017 | C34: M2 | D34: 60.95 | E34: 19.96 | F34: 1216.56
A35: 3.10 | B35: REPARO EM PAREDE - INCLUSO RASGO EM ALVENARIA | D35: 24 | E35: 29.58 | F35: 709.92
A36: 3.11 | B36: DEMOLIÇÃO DE PISO GRANILITE, DE FORMA MECANIZADA COM MARTELETE, SEM REAPROVEITAMENTO. AF_12/2017 | C36: M2 | D36: 145 | E36: 10.45 | F36: 1515.25
A37: 3.12 | B37: DEMOLIÇÃO DE PILARES E VIGAS EM CONCRETO ARMADO, DE FORMA MECANIZADA COM MARTELETE, SEM REAPROVEITAMENTO. AF_12/2017 | C37: M3 | D37: 5.8 | E37: 243.62 | F37: =ROUND(D37*E37,2) -> 1413
A38: 3.13 | B38: DEMOLIÇÃO DE ARGAMASSAS, DE FORMA MANUAL, SEM REAPROVEITAMENTO. AF_12/2017 | C38: M2 | D38: 152 | E38: 2.91 | F38: =ROUND(D38*E38,2) -> 442.32
A39: 3.14 | B39: CARGA, MANOBRA E DESCARGA DE ENTULHO EM CAMINHÃO BASCULANTE 6 M³ - CARGA COM ESCAVADEIRA HIDRÁULICA (CAÇAMBA DE 0,80 M³ / 111 HP) E DESCARGA LIVRE (UNIDADE: M3). AF_07/2020 | C39: M3 | D39: 55 | E39: 7.76 | F39: 426.8
A40: 3.15 | B40: TRANSPORTE COM CAMINHÃO BASCULANTE DE 10 M³, EM VIA URBANA PAVIMENTADA, DMT ATÉ 30 KM (UNIDADE: M3XKM). AF_07/2020 | C40: M3XKM | D40: 825 | E40: 2.13 | F40: =ROUND(D40*E40,2) -> 1757.25
A42: 4 | B42: FECHAMENTO | F42: =SUBTOTAL(9,F43:F45) -> 3309.67
A43: 4.1 | B43: VERGA MOLDADA IN LOCO COM UTILIZAÇÃO DE BLOCOS CANALETA PARA JANELAS COM MAIS DE 1,5 M DE VÃO. AF_03/2016 | C43: M | D43: 27 | E43: 52.39 | F43: =ROUND(D43*E43,2) -> 1414.53
A44: 4.2 | B44: CONTRAVERGA MOLDADA IN LOCO EM CONCRETO PARA VÃOS DE MAIS DE 1,5 M DE COMPRIMENTO. AF_03/2016 | C44: M | D44: 16.2 | E44: 86.62 | F44: 1403.24
A45: 4.3 | B45: ALVENARIA DE VEDAÇÃO DE BLOCOS CERÂMICOS FURADOS NA HORIZONTAL DE 9X19X19CM (ESPESSURA 9CM) DE PAREDES COM ÁREA LÍQUIDA MENOR QUE 6M² SEM VÃOS E ARGAMASSA DE ASSENTAMENTO COM PREPARO EM BETONEIRA. AF_06/2014 | C45: M2 | D45: 5 | E45: 98.38 | F45: 491.9
A47: 5 | B47: REVESTIMENTO INTERNO E EXTERNO | F47: =SUBTOTAL(9,F48:F52) -> 22968.3
A48: 5.1 | B48: CHAPISCO APLICADO EM ALVENARIA (SEM PRESENÇA DE VÃOS) E ESTRUTURAS DE CONCRETO DE FACHADA, COM COLHER DE PEDREIRO. ARGAMASSA TRAÇO 1:3 COM PREPARO EM BETONEIRA 400L. AF_06/2014 | C48: M2 | D48: 247.1 | E48: 6.3 | F48: =ROUND(D48*E48,2) -> 1556.73
A49: 5.2 | B49: EMBOÇO OU MASSA ÚNICA EM ARGAMASSA TRAÇO 1:2:8, PREPARO MANUAL, APLICADA MANUALMENTE NAS PAREDES INTERNAS DA SACADA, ESPESSURA DE 25 MM, SEM USO DE TELA METÁLICA DE REFORÇO CONTRA FISSURAÇÃO. AF_06/2014 | C49: M2 | D49: 152 | E49: 70.12 | F49: =ROUND(D49*E49,2) -> 10658.24
A50: 5.3 | B50: EMBOÇO, PARA RECEBIMENTO DE CERÂMICA, EM ARGAMASSA TRAÇO 1:2:8, PREPARO MECÂNICO COM BETONEIRA 400L, APLICADO MANUALMENTE EM FACES INTERNAS DE PAREDES, PARA AMBIENTE COM ÁREA ENTRE 5M2 E 10M2, ESPESSURA DE 20MM, COM EXECUÇÃO DE TALISCAS. AF_06/2014 | C50: M2 | D50: 95.1 | E50: 32.7 | F50: 3109.77
A51: 5.4 | B51: APLICAÇÃO MANUAL DE FUNDO SELADOR ACRÍLICO EM PAREDES EXTERNAS DE CASAS. AF_06/2014 | C51: M2 | D51: 152 | E51: 2.43 | F51: =ROUND(D51*E51,2) -> 369.36
A52: 5.5 | B52: REVESTIMENTO CERÂMICO PARA PAREDES INTERNAS COM PLACAS TIPO ESMALTADA EXTRA DE DIMENSÕES 33X45 CM APLICADAS EM AMBIENTES DE ÁREA MAIOR QUE 5 M² A MEIA ALTURA DAS PAREDES. AF_06/2014 | C52: M2 | D52: 95.1 | E52: 76.49 | F52: 7274.2
A54: 6 | B54: COBERTURA | F54: =SUBTOTAL(9,F55:F62) -> 45262.32
A55: 6.1 | B55: TRAMA DE AÇO COMPOSTA POR TERÇAS PARA TELHADOS DE ATÉ 2 ÁGUAS PARA TELHA ESTRUTURAL DE FIBROCIMENTO, INCLUSO TRANSPORTE VERTICAL. AF_07/2019 | C55: M2 | D55: 205.06 | E55: 65.35 | F55: =ROUND(D55*E55,2) -> 13400.67
A56: 6.2 | B56: TELHAMENTO COM TELHA ONDULADA DE FIBROCIMENTO E = 6 MM, COM RECOBRIMENTO LATERAL DE 1 1/4 DE ONDA PARA TELHADO COM INCLINAÇÃO MÁXIMA DE 10°, COM ATÉ 2 ÁGUAS, INCLUSO IÇAMENTO. AF_07/2019 | C56: M2 | D56: 205.06 | E56: 61.92 | F56: 12697.32
A57: 6.3 | B57: FORRO EM RÉGUAS DE PVC, FRISADO, PARA AMBIENTES RESIDENCIAIS, INCLUSIVE ESTRUTURA DE FIXAÇÃO. AF_05/2017_P | C57: M2 | D57: 204.04 | E57: 68.31 | F57: 13937.97
A58: 6.4 | B58: CUMEEIRA PARA TELHA DE FIBROCIMENTO ONDULADA E = 6 MM, INCLUSO ACESSÓRIOS DE FIXAÇÃO E IÇAMENTO. AF_07/2019 | C58: M | D58: 17.053 | E58: 75.71 | F58: =ROUND(D58*E58,2) -> 1291.08
A59: 6.5 | B59: CALHA DE BEIRAL, SEMICIRCULAR DE PVC, DIAMETRO 125 MM, INCLUINDO CABECEIRAS, EMENDAS, BOCAIS, SUPORTES E VEDAÇÕES, EXCLUINDO CONDUTORES, INCLUSO TRANSPORTE VERTICAL. AF_07/2019 | C59: M | D59: 18 | E59: 73.48 | F59: =ROUND(D59*E59,2) -> 1322.64
A60: 6.6 | B60: TUBO PVC, SÉRIE R, ÁGUA PLUVIAL, DN 100 MM, FORNECIDO E INSTALADO EM CONDUTORES VERTICAIS DE ÁGUAS PLUVIAIS. AF_12/2014 | C60: M | D60: 12 | E60: 47.8 | F60: 573.6
A61: 6.7 | B61: JOELHO 90 GRAUS, PVC, SERIE R, ÁGUA PLUVIAL, DN 100 MM, JUNTA ELÁSTICA, FORNECIDO E INSTALADO EM RAMAL DE ENCAMINHAMENTO. AF_12/2014 | C61: UN | D61: 6 | E61: 49.04 | F61: 294.24
A62: 6.8 | B62: ACABAMENTO DE BEIRAL METÁLICO HORIZONTAL L=20CM, COM PINTURA, FORNECIMENTO E INSTALAÇÃO | C62: M | D62: 60 | E62: 29.08 | F62: 1744.8
A64: 7 | B64: PISO | F64: =SUBTOTAL(9,F65:F69) -> 22682.11
A65: 7.1 | B65: PISO EM GRANILITE, MARMORITE OU GRANITINA EM AMBIENTES INTERNOS. AF_09/2020 | C65: M2 | D65: 140.35 | E65: 46.11 | F65: =ROUND(D65*E65,2) -> 6471.54
A66: 7.2 | B66: CONTRAPISO EM ARGAMASSA TRAÇO 1:4 (CIMENTO E AREIA), PREPARO MECÂNICO COM BETONEIRA 400 L, APLICADO EM ÁREAS SECAS SOBRE LAJE, NÃO ADERIDO, ESPESSURA 5CM. AF_06/2014 | C66: M2 | D66: 140.35 | E66: 44.4 | F66: =ROUND(D66*E66,2) -> 6231.54
A67: 7.3 | B67: IMPERMEABILIZAÇÃO DE SUPERFÍCIE COM MEMBRANA À BASE DE RESINA ACRÍLICA, 3 DEMÃOS. AF_06/2018 | C67: M2 | D67: 140.35 | E67: 43.12 | F67: 6051.89
A68: 7.4 | B68: EXECUÇÃO DE PASSEIO (CALÇADA) OU PISO DE CONCRETO COM CONCRETO MOLDADO IN LOCO, USINADO, ACABAMENTO CONVENCIONAL, ESPESSURA 6 CM, ARMADO. AF_07/2016 | C68: M2 | D68: 26.81 | E68: 120.54 | F68: 3231.68
A69: 7.5 | B69: REVESTIMENTO CERÂMICO PARA PISO COM PLACAS TIPO ESMALTADA EXTRA DE DIMENSÕES 35X35 CM APLICADA EM AMBIENTES DE ÁREA ENTRE 5 M2 E 10 M2. AF_06/2014 | C69: M2 | D69: 13.4 | E69: 51.9 | F69: 695.46
A71: 8 | B71: ESQUADRIA | F71: =SUBTOTAL(9,F72:F76) -> 22856.62
A72: 8.1 | B72: PORTA DE ALUMÍNIO DE ABRIR COM LAMBRI, COM GUARNIÇÃO, FIXAÇÃO COM PARAFUSOS - FORNECIMENTO E INSTALAÇÃO. AF_12/2019 | C72: M2 | D72: 9.66 | E72: 843.86 | F72: =ROUND(D72*E72,2) -> 8151.69
A73: 8.2 | B73: PORTA DE CORRER DE ALUMÍNIO, COM DUAS FOLHAS PARA VIDRO, INCLUSO VIDRO LISO INCOLOR, FECHADURA E PUXADOR, SEM ALIZAR. AF_12/2019 | C73: M2 | D73: 6.3 | E73: 487.78 | F73: 3073.01
A74: 8.3 | B74: JANELA DE ALUMÍNIO TIPO MAXIM-AR, COM VIDROS, BATENTE E FERRAGENS. EXCLUSIVE ALIZAR, ACABAMENTO E CONTRAMARCO. FORNECIMENTO E INSTALAÇÃO. AF_12/2019 | C74: M2 | D74: 3.5 | E74: 972.76 | F74: 3404.66
A75: 8.4 | B75: JANELA DE ALUMÍNIO DE CORRER COM 2 FOLHAS PARA VIDROS, COM VIDROS, BATENTE, ACABAMENTO COM ACETATO OU BRILHANTE E FERRAGENS. EXCLUSIVE ALIZAR E CONTRAMARCO. FORNECIMENTO E INSTALAÇÃO. AF_12/2019 | C75: M2 | D75: 9 | E75: 636.1 | F75: 5724.9
A76: 8.5 | B76: PORTAO DE CORRER EM CHAPA TIPO PAINEL LAMBRIL QUADRADO, COM PORTA SOCIAL COMPLETA INCLUIDA, COM REQUADRO, ACABAMENTO NATURAL, COM TRILHOS E ROLDANAS. FORNECIMENTO E INSTALAÇÃO. | C76: M2 | D76: 2 | E76: 1251.18 | F76: 2502.36
A78: 9 | B78: PINTURA INTERNA E EXTERNA | F78: =SUBTOTAL(9,F79:F92) -> 52405.06
A79: 9.1 | B79: INTERNA | F79: =SUBTOTAL(9,F80:F83) -> 22107.75
A80: 9.1.1 | B80: LIXAMENTO DE SUPERFICIE DE CONCRETO APARENTE | C80: M2 | D80: 375 | E80: 6.12 | F80: =ROUND(D80*E80,2) -> 2295
A81: 9.1.2 | B81: APLICAÇÃO MANUAL DE MASSA ACRÍLICA EM PAREDES EXTERNAS DE CASAS, DUAS DEMÃOS. AF_05/2017 | C81: M2 | D81: 375 | E81: 26.94 | F81: =ROUND(D81*E81,2) -> 10102.5
A82: 9.1.3 | B82: PINTURA COM TINTA ALQUÍDICA DE ACABAMENTO (ESMALTE SINTÉTICO BRILHANTE) APLICADA A ROLO OU PINCEL SOBRE SUPERFÍCIES METÁLICAS (EXCETO PERFIL) EXECUTADO EM OBRA (02 DEMÃOS). AF_01/2020 | C82: M2 | D82: 150 | E82: 42.79 | F82: 6418.5
A83: 9.1.4 | B83: APLICAÇÃO MANUAL DE PINTURA COM TINTA LÁTEX ACRÍLICA EM PAREDES, DUAS DEMÃOS. AF_06/2014 | C83: M2 | D83: 225 | E83: 14.63 | F83: 3291.75
A85: 9.2 | B85: EXTERNA | F85: =SUBTOTAL(9,F86:F89) -> 25718.56
A86: 9.2.1 | B86: LIXAMENTO DE SUPERFICIE DE CONCRETO APARENTE | C86: M2 | D86: 472 | E86: 6.12 | F86: =ROUND(D86*E86,2) -> 2888.64
A87: 9.2.2 | B87: APLICAÇÃO MANUAL DE MASSA ACRÍLICA EM PAREDES EXTERNAS DE CASAS, DUAS DEMÃOS. AF_05/2017 | C87: M2 | D87: 432 | E87: 26.94 | F87: =ROUND(D87*E87,2) -> 11638.08
A88: 9.2.3 | B88: PINTURA COM TINTA ALQUÍDICA DE ACABAMENTO (ESMALTE SINTÉTICO BRILHANTE) APLICADA A ROLO OU PINCEL SOBRE SUPERFÍCIES METÁLICAS (EXCETO PERFIL) EXECUTADO EM OBRA (02 DEMÃOS). AF_01/2020 | C88: M2 | D88: 173 | E88: 42.79 | F88: 7402.67
A89: 9.2.4 | B89: APLICAÇÃO MANUAL DE PINTURA COM TINTA LÁTEX ACRÍLICA EM PAREDES, DUAS DEMÃOS. AF_06/2014 | C89: M2 | D89: 259 | E89: 14.63 | F89: 3789.17
A91: 9.3 | B91: DIVERSOS | F91: =SUBTOTAL(9,F92:F92) -> 4578.75
A92: 9.3.1 | B92: PINTURA ACRILICA EM PISO CIMENTADO DUAS DEMAOS | C92: M2 | D92: 275 | E92: 16.65 | F92: =ROUND(D92*E92,2) -> 4578.75
A94: 10 | B94: INSTALAÇÕES SANITÁRIAS | F94: =SUBTOTAL(9,F95:F115) -> 14593.99
A95: 10.1 | B95: CAIXA ENTERRADA HIDRÁULICA RETANGULAR EM ALVENARIA COM TIJOLOS CERÂMICOS MACIÇOS, DIMENSÕES INTERNAS: 0,6X0,6X0,6 M PARA REDE DE ESGOTO. AF_12/2020 | C95: UN | D95: 5 | E95: 659.09 | F95: =ROUND(D95*E95,2) -> 3295.45
A96: 10.2 | B96: CAIXA SIFONADA, PVC, DN 100 X 100 X 50 MM, JUNTA ELÁSTICA, FORNECIDA E INSTALADA EM RAMAL DE DESCARGA OU EM RAMAL DE ESGOTO SANITÁRIO. AF_12/2014 | C96: UN | D96: 2 | E96: 37.26 | F96: 74.52
A97: 10.3 | B97: SIFÃO DO TIPO GARRAFA EM METAL CROMADO 1 X 1.1/2 - FORNECIMENTO E INSTALAÇÃO. AF_01/2020 | C97: UN | D97: 2 | E97: 192 | F97: =ROUND(D97*E97,2) -> 384
A98: 10.4 | B98: VÁLVULA EM METAL CROMADO 1.1/2 X 1.1/2 PARA TANQUE OU LAVATÓRIO, COM OU SEM LADRÃO - FORNECIMENTO E INSTALAÇÃO. AF_01/2020 | C98: UN | D98: 2 | E98: 34.32 | F98: =ROUND(D98*E98,2) -> 68.64
A99: 10.5 | B99: CURVA CURTA 90 GRAUS, PVC, SERIE NORMAL, ESGOTO PREDIAL, DN 40 MM, JUNTA SOLDÁVEL, FORNECIDO E INSTALADO EM RAMAL DE DESCARGA OU RAMAL DE ESGOTO SANITÁRIO. AF_12/2014 | C99: UN | D99: 2 | E99: 11.44 | F99: 22.88
A100: 10.6 | B100: JOELHO 45 GRAUS, PVC, SERIE NORMAL, ESGOTO PREDIAL, DN 100 MM, JUNTA ELÁSTICA, FORNECIDO E INSTALADO EM RAMAL DE DESCARGA OU RAMAL DE ESGOTO SANITÁRIO. AF_12/2014 | C100: UN | D100: 2 | E100: 28.28 | F100: 56.56
A101: 10.7 | B101: JOELHO 45 GRAUS, PVC, SERIE NORMAL, ESGOTO PREDIAL, DN 40 MM, JUNTA SOLDÁVEL, FORNECIDO E INSTALADO EM RAMAL DE DESCARGA OU RAMAL DE ESGOTO SANITÁRIO. AF_12/2014 | C101: UN | D101: 2 | E101: 7.81 | F101: 15.62
A102: 10.8 | B102: JOELHO 45 GRAUS, PVC, SERIE NORMAL, ESGOTO PREDIAL, DN 50 MM, JUNTA ELÁSTICA, FORNECIDO E INSTALADO EM RAMAL DE DESCARGA OU RAMAL DE ESGOTO SANITÁRIO. AF_12/2014 | C102: UN | D102: 2 | E102: 13.54 | F102: 27.08
A103: 10.9 | B103: JOELHO 90 GRAUS, PVC, SERIE NORMAL, ESGOTO PREDIAL, DN 100 MM, JUNTA ELÁSTICA, FORNECIDO E INSTALADO EM RAMAL DE DESCARGA OU RAMAL DE ESGOTO SANITÁRIO. AF_12/2014 | C103: UN | D103: 4 | E103: 28.34 | F103: =ROUND(D103*E103,2) -> 113.36
A104: 10.10 | B104: JOELHO 90 GRAUS, PVC, SERIE NORMAL, ESGOTO PREDIAL, DN 40 MM, JUNTA SOLDÁVEL, FORNECIDO E INSTALADO EM RAMAL DE DESCARGA OU RAMAL DE ESGOTO SANITÁRIO. AF_12/2014 | C104: UN | D104: 2 | E104: 10.72 | F104: 21.44
A105: 10.11 | B105: JUNÇÃO SIMPLES, PVC, SERIE NORMAL, ESGOTO PREDIAL, DN 100 X 100 MM, JUNTA ELÁSTICA, FORNECIDO E INSTALADO EM SUBCOLETOR AÉREO DE ESGOTO SANITÁRIO. AF_12/2014 | C105: UN | D105: 2 | E105: 54.54 | F105: 109.08
A106: 10.12 | B106: TUBO PVC, SERIE NORMAL, ESGOTO PREDIAL, DN 100 MM, FORNECIDO E INSTALADO EM RAMAL DE DESCARGA OU RAMAL DE ESGOTO SANITÁRIO. AF_12/2014 | C106: M | D106: 44.08 | E106: 58.35 | F106: 2572.07
A107: 10.13 | B107: TUBO PVC, SERIE NORMAL, ESGOTO PREDIAL, DN 40 MM, FORNECIDO E INSTALADO EM RAMAL DE DESCARGA OU RAMAL DE ESGOTO SANITÁRIO. AF_12/2014 | C107: M | D107: 3.2 | E107: 19.27 | F107: 61.66
A108: 10.14 | B108: TUBO PVC, SERIE NORMAL, ESGOTO PREDIAL, DN 50 MM, FORNECIDO E INSTALADO EM RAMAL DE DESCARGA OU RAMAL DE ESGOTO SANITÁRIO. AF_12/2014 | C108: M | D108: 3.48 | E108: 29.61 | F108: 103.04
A109: 10.15 | B109: CURVA 90 GRAUS, PVC, SOLDÁVEL, DN 50MM, INSTALADO EM PRUMADA DE ÁGUA - FORNECIMENTO E INSTALAÇÃO. AF_12/2014 | C109: UN | D109: 2 | E109: 26.62 | F109: 53.24
A110: 10.16 | B110: JOELHO 90 GRAUS, PVC, SERIE NORMAL, ESGOTO PREDIAL, DN 50 MM, JUNTA ELÁSTICA, FORNECIDO E INSTALADO EM RAMAL DE DESCARGA OU RAMAL DE ESGOTO SANITÁRIO. AF_12/2014 | C110: UN | D110: 4 | E110: 12.86 | F110: 51.44
A111: 10.17 | B111: TUBO PVC, SERIE NORMAL, ESGOTO PREDIAL, DN 50 MM, FORNECIDO E INSTALADO EM RAMAL DE DESCARGA OU RAMAL DE ESGOTO SANITÁRIO. AF_12/2014 | C111: M | D111: 3 | E111: 29.61 | F111: 88.83
A112: 10.18 | B112: TE, PVC, SERIE NORMAL, ESGOTO PREDIAL, DN 50 X 50 MM, JUNTA ELÁSTICA, FORNECIDO E INSTALADO EM RAMAL DE DESCARGA OU RAMAL DE ESGOTO SANITÁRIO. AF_12/2014 | C112: UN | D112: 2 | E112: 24.19 | F112: 48.38
A113: 10.19 | B113: TANQUE SÉPTICO CIRCULAR, EM CONCRETO PRÉ-MOLDADO, DIÂMETRO INTERNO = 1,10 M, ALTURA INTERNA = 2,50 M, VOLUME ÚTIL: 2138,2 L (PARA 5 CONTRIBUINTES). AF_12/2020 | C113: UN | D113: 1 | E113: 2275.88 | F113: =ROUND(D113*E113,2) -> 2275.88
A114: 10.20 | B114: FILTRO ANAERÓBIO CIRCULAR, EM CONCRETO PRÉ-MOLDADO, DIÂMETRO INTERNO = 1,10 M, ALTURA INTERNA = 1,50 M, VOLUME ÚTIL: 1140,4 L (PARA 5 CONTRIBUINTES). AF_12/2020 | C114: UN | D114: 1 | E114: 1918.14 | F114: =ROUND(D114*E114,2) -> 1918.14
A115: 10.21 | B115: SUMIDOURO CIRCULAR, EM CONCRETO PRÉ-MOLDADO, DIÂMETRO INTERNO = 1,88 M, ALTURA INTERNA = 2,00 M, ÁREA DE INFILTRAÇÃO: 13,1 M² (PARA 5 CONTRIBUINTES). AF_12/2020 | C115: UN | D115: 1 | E115: 3232.68 | F115: =ROUND(D115*E115,2) -> 3232.68
A117: 11 | B117: INSTALAÇÕES HIDRÁULICAS | F117: =SUBTOTAL(9,F118:F151) -> 17769.84
A118: 11.1 | B118: ALIMENTAÇÃO | F118: =SUBTOTAL(9,F119:F146) -> 14270.52
A119: 11.1.1 | B119: BOMBA CENTRÍFUGA, TRIFÁSICA, 1 CV OU 0,99 HP, HM 14 A 40 M, Q 0,6 A 8,4 M3/H - FORNECIMENTO E INSTALAÇÃO. AF_12/2020 | C119: UN | D119: 1 | E119: 1684.21 | F119: =ROUND(D119*E119,2) -> 1684.21
A120: 11.1.2 | B120: REGISTRO DE GAVETA BRUTO, LATÃO, ROSCÁVEL, 1, INSTALADO EM RESERVAÇÃO DE ÁGUA DE EDIFICAÇÃO QUE POSSUA RESERVATÓRIO DE FIBRA/FIBROCIMENTO  FORNECIMENTO E INSTALAÇÃO. AF_06/2016 | C120: UN | D120: 2 | E120: 62.99 | F120: 125.98
A121: 11.1.3 | B121: REGISTRO DE GAVETA BRUTO, LATÃO, ROSCÁVEL, 1 1/2, INSTALADO EM RESERVAÇÃO DE ÁGUA DE EDIFICAÇÃO QUE POSSUA RESERVATÓRIO DE FIBRA/FIBROCIMENTO  FORNECIMENTO E INSTALAÇÃO. AF_06/2016 | C121: UN | D121: 1 | E121: 85.19 | F121: 85.19
A122: 11.1.4 | B122: REGISTRO DE GAVETA BRUTO, LATÃO, ROSCÁVEL, 3/4", COM ACABAMENTO E CANOPLA CROMADOS. FORNECIDO E INSTALADO EM RAMAL DE ÁGUA. AF_12/2014 | C122: UN | D122: 7 | E122: 57.63 | F122: 403.41
A123: 11.1.5 | B123: REGISTRO DE ESFERA, PVC, ROSCÁVEL, 3/4", FORNECIDO E INSTALADO EM RAMAL DE ÁGUA. AF_03/2015 | C123: UN | D123: 1 | E123: 24.91 | F123: 24.91
A124: 11.1.6 | B124: ADAPTADOR CURTO COM BOLSA E ROSCA PARA REGISTRO, PVC, SOLDÁVEL, DN 20MM X 1/2, INSTALADO EM RAMAL OU SUB-RAMAL DE ÁGUA - FORNECIMENTO E INSTALAÇÃO. AF_12/2014 | C124: UN | D124: 4 | E124: 5.76 | F124: 23.04
A125: 11.1.7 | B125: JOELHO ROSCA FÊMEA, COM BASE FIXA, METÁLICO, PARA INSTALAÇÕES EM PEX, DN 25MM X 3/4", CONEXÃO POR ANEL DESLIZANTE  FORNECIMENTO E INSTALAÇÃO. AF_06/2015 | C125: UN | D125: 3 | E125: 47.25 | F125: 141.75
A126: 11.1.8 | B126: JOELHO DE TRANSIÇÃO, 90 GRAUS, CPVC, SOLDÁVEL, DN 22MM X 1/2", INSTALADO EM RAMAL OU SUB-RAMAL DE ÁGUA - FORNECIMENTO E INSTALAÇÃO. AF_12/2014 | C126: UN | D126: 4 | E126: 33.71 | F126: 134.84
A127: 11.1.9 | B127: ADAPTADOR COM FLANGES LIVRES, PVC, SOLDÁVEL, DN 25 MM X 3/4 , INSTALADO EM RESERVAÇÃO DE ÁGUA DE EDIFICAÇÃO QUE POSSUA RESERVATÓRIO DE FIBRA/FIBROCIMENTO FORNECIMENTO E INSTALAÇÃO. AF_06/2016 | C127: UN | D127: 2 | E127: 27.47 | F127: 54.94
A128: 11.1.10 | B128: ADAPTADOR COM FLANGES LIVRES, PVC, SOLDÁVEL, DN 32 MM X 1 , INSTALADO EM RESERVAÇÃO DE ÁGUA DE EDIFICAÇÃO QUE POSSUA RESERVATÓRIO DE FIBRA/FIBROCIMENTO FORNECIMENTO E INSTALAÇÃO. AF_06/2016 | C128: UN | D128: 4 | E128: 35.44 | F128: 141.76
A129: 11.1.11 | B129: ADAPTADOR COM FLANGES LIVRES, PVC, SOLDÁVEL, DN 50 MM X 1 1/2 , INSTALADO EM RESERVAÇÃO DE ÁGUA DE EDIFICAÇÃO QUE POSSUA RESERVATÓRIO DE FIBRA/FIBROCIMENTO FORNECIMENTO E INSTALAÇÃO. AF_06/2016 | C129: UN | D129: 2 | E129: 67.1 | F129: 134.2
A130: 11.1.12 | B130: ADAPTADOR CURTO COM BOLSA E ROSCA PARA REGISTRO, PVC, SOLDÁVEL, DN 25MM X 3/4, INSTALADO EM PRUMADA DE ÁGUA - FORNECIMENTO E INSTALAÇÃO. AF_12/2014 | C130: UN | D130: 15 | E130: 4.18 | F130: =ROUND(D130*E130,2) -> 62.7
A131: 11.1.13 | B131: ADAPTADOR CURTO COM BOLSA E ROSCA PARA REGISTRO, PVC, SOLDÁVEL, DN 32MM X 1, INSTALADO EM PRUMADA DE ÁGUA - FORNECIMENTO E INSTALAÇÃO. AF_12/2014 | C131: UN | D131: 4 | E131: 6.18 | F131: 24.72
A132: 11.1.14 | B132: ADAPTADOR CURTO COM BOLSA E ROSCA PARA REGISTRO, PVC, SOLDÁVEL, DN 50MM X 1.1/2, INSTALADO EM PRUMADA DE ÁGUA - FORNECIMENTO E INSTALAÇÃO. AF_12/2014 | C132: UN | D132: 2 | E132: 12.2 | F132: 24.4
A133: 11.1.15 | B133: CURVA 90 GRAUS, PVC, SOLDÁVEL, DN 25MM, INSTALADO EM RAMAL DE DISTRIBUIÇÃO DE ÁGUA - FORNECIMENTO E INSTALAÇÃO. AF_12/2014 | C133: UN | D133: 2 | E133: 9.02 | F133: 18.04
A134: 11.1.16 | B134: CURVA 90 GRAUS, PVC, SOLDÁVEL, DN 50MM, INSTALADO EM PRUMADA DE ÁGUA - FORNECIMENTO E INSTALAÇÃO. AF_12/2014 | C134: UN | D134: 4 | E134: 26.62 | F134: 106.48
A135: 11.1.17 | B135: BUCHA DE REDUÇÃO, PPR, 32 X 25, CLASSE PN 25, INSTALADO EM PRUMADA DE ÁGUA  FORNECIMENTO E INSTALAÇÃO . AF_06/2015 | C135: UN | D135: 1 | E135: 6.88 | F135: 6.88
A136: 11.1.18 | B136: JOELHO 90 GRAUS, PVC, SOLDÁVEL, DN 25MM, INSTALADO EM PRUMADA DE ÁGUA - FORNECIMENTO E INSTALAÇÃO. AF_12/2014 | C136: UN | D136: 9 | E136: 4.87 | F136: 43.83
A137: 11.1.19 | B137: JOELHO 90 GRAUS, PVC, SOLDÁVEL, DN 32MM, INSTALADO EM PRUMADA DE ÁGUA - FORNECIMENTO E INSTALAÇÃO. AF_12/2014 | C137: UN | D137: 4 | E137: 7.66 | F137: 30.64
A138: 11.1.20 | B138: JOELHO 90 GRAUS, PVC, SOLDÁVEL, DN 50MM, INSTALADO EM PRUMADA DE ÁGUA - FORNECIMENTO E INSTALAÇÃO. AF_12/2014 | C138: UN | D138: 1 | E138: 15.17 | F138: 15.17
A139: 11.1.21 | B139: TUBO, PVC, SOLDÁVEL, DN 25MM, INSTALADO EM PRUMADA DE ÁGUA - FORNECIMENTO E INSTALAÇÃO. AF_12/2014 | C139: M | D139: 68.36 | E139: 5.41 | F139: =ROUND(D139*E139,2) -> 369.83
A140: 11.1.22 | B140: TUBO, PVC, SOLDÁVEL, DN 32MM, INSTALADO EM PRUMADA DE ÁGUA - FORNECIMENTO E INSTALAÇÃO. AF_12/2014 | C140: M | D140: 4.98 | E140: 11.46 | F140: 57.07
A141: 11.1.23 | B141: TUBO, PVC, SOLDÁVEL, DN 50MM, INSTALADO EM PRUMADA DE ÁGUA - FORNECIMENTO E INSTALAÇÃO. AF_12/2014 | C141: M | D141: 10.91 | E141: 18.99 | F141: 207.18
A142: 11.1.24 | B142: JOELHO DE REDUCAO, PVC, ROSCAVEL COM BUCHA DE LATAO, 90 GRAUS, 25 MM -1/2", PARA AGUA FRIA PREDIAL | C142: UN | D142: 2 | E142: 31.46 | F142: 62.92
A143: 11.1.25 | B143: CONJUNTO DE BASE E FECHAMENTO PARA RESERVATORIO - INCLUSO CONCRETAGEM DE BASE, FECHAMENTO COM TELA DE ARAME EM MOURÃO DE CONCRETO | C143: UN | D143: 1 | E143: 4057.11 | F143: 4057.11
A144: 11.1.26 | B144: RESERVATÓRIO 5000 LITROS | C144: UN | D144: 1 | E144: 2414.69 | F144: 2414.69
A145: 11.1.27 | B145: ESTRUTURA PRÉ -MOLDADA DE 5 M PARA CAIXA D'AGUA 2000L. INCLUSO CAIXA D'ÁGUA DE 2000 LITROS E INSTALAÇÃO. | C145: UN | D145: 1 | E145: 2912.76 | F145: 2912.76
A146: 11.1.28 | B146: HIDROMETRO MULTIJATO, VAZAO MAXIMA DE 20,0 M3/H, DE 1 1/2". FORNECIMENTO E INSTALAÇÃO | C146: UN | D146: 1 | E146: 901.87 | F146: 901.87
A148: 11.2 | B148: LOUÇAS E METAIS | F148: =SUBTOTAL(9,F149:F151) -> 3499.32
A149: 11.2.1 | B149: VASO SANITÁRIO SIFONADO COM CAIXA ACOPLADA LOUÇA BRANCA, INCLUSO ENGATE FLEXÍVEL EM PLÁSTICO BRANCO, 1/2 X 40CM - FORNECIMENTO E INSTALAÇÃO. AF_01/2020 | C149: UN | D149: 4 | E149: 468.32 | F149: =ROUND(D149*E149,2) -> 1873.28
A150: 11.2.2 | B150: LAVATÓRIO LOUÇA BRANCA COM COLUNA, 45 X 55CM OU EQUIVALENTE, PADRÃO MÉDIO, INCLUSO SIFÃO TIPO GARRAFA, VÁLVULA E ENGATE FLEXÍVEL DE 40CM EM METAL CROMADO, COM TORNEIRA CROMADA DE MESA, PADRÃO MÉDIO - FORNECIMENTO E INSTALAÇÃO. AF_01/2020 | C150: UN | D150: 2 | E150: 709.52 | F150: 1419.04
A151: 11.2.3 | B151: ASSENTO SANITÁRIO CONVENCIONAL - FORNECIMENTO E INSTALACAO. AF_01/2020 | C151: UN | D151: 4 | E151: 51.75 | F151: 207
A153: 12 | B153: INSTALAÇÕES ELÉTRICAS | F153: =SUBTOTAL(9,F154:F181) -> 16808.28
A154: 12.1 | B154: CAIXA RETANGULAR 4" X 2" MÉDIA (1,30 M DO PISO), PVC, INSTALADA EM PAREDE - FORNECIMENTO E INSTALAÇÃO. AF_12/2015 | C154: UN | D154: 4 | E154: 13.63 | F154: =ROUND(D154*E154,2) -> 54.52
A155: 12.2 | B155: CAIXA RETANGULAR 4" X 2" BAIXA (0,30 M DO PISO), PVC, INSTALADA EM PAREDE - FORNECIMENTO E INSTALAÇÃO. AF_12/2015 | C155: UN | D155: 8 | E155: 9.12 | F155: 72.96
A156: 12.3 | B156: CAIXA RETANGULAR 4" X 2" ALTA (2,00 M DO PISO), PVC, INSTALADA EM PAREDE - FORNECIMENTO E INSTALAÇÃO. AF_12/2015 | C156: UN | D156: 8 | E156: 25.69 | F156: 205.52
A157: 12.4 | B157: CAIXA OCTOGONAL 3" X 3", PVC, INSTALADA EM LAJE - FORNECIMENTO E INSTALAÇÃO. AF_12/2015 | C157: UN | D157: 11 | E157: 10.13 | F157: 111.43
A158: 12.5 | B158: CABO DE COBRE FLEXÍVEL ISOLADO, 2,5 MM², ANTI-CHAMA 450/750 V, PARA CIRCUITOS TERMINAIS - FORNECIMENTO E INSTALAÇÃO. AF_12/2015 | C158: M | D158: 670.4 | E158: 4.89 | F158: 3278.26
A159: 12.6 | B159: CABO DE COBRE FLEXÍVEL ISOLADO, 4 MM², ANTI-CHAMA 450/750 V, PARA CIRCUITOS TERMINAIS - FORNECIMENTO E INSTALAÇÃO. AF_12/2015 | C159: M | D159: 97.3 | E159: 8.16 | F159: 793.97
A160: 12.7 | B160: CABO DE COBRE FLEXÍVEL ISOLADO, 16 MM², 0,6/1,0 KV, PARA REDE AÉREA DE DISTRIBUIÇÃO DE ENERGIA ELÉTRICA DE BAIXA TENSÃO - FORNECIMENTO E INSTALAÇÃO. AF_07/2020 | C160: M | D160: 22.8 | E160: 22.29 | F160: 508.21
A161: 12.8 | B161: CABO DE COBRE FLEXÍVEL ISOLADO, 25 MM², 0,6/1,0 KV, PARA REDE AÉREA DE DISTRIBUIÇÃO DE ENERGIA ELÉTRICA DE BAIXA TENSÃO - FORNECIMENTO E INSTALAÇÃO. AF_07/2020 | C161: M | D161: 68.4 | E161: 33.9 | F161: 2318.76
A162: 12.9 | B162: INTERRUPTOR SIMPLES (3 MÓDULOS), 10A/250V, INCLUINDO SUPORTE E PLACA - FORNECIMENTO E INSTALAÇÃO. AF_12/2015 | C162: UN | D162: 1 | E162: 52.56 | F162: 52.56
A163: 12.10 | B163: INTERRUPTOR SIMPLES (1 MÓDULO) COM 1 TOMADA DE EMBUTIR 2P+T 10 A, INCLUINDO SUPORTE E PLACA - FORNECIMENTO E INSTALAÇÃO. AF_12/2015 | C163: UN | D163: 3 | E163: 42.99 | F163: 128.97
A164: 12.11 | B164: TOMADA BAIXA DE EMBUTIR (1 MÓDULO), 2P+T 10 A, INCLUINDO SUPORTE E PLACA - FORNECIMENTO E INSTALAÇÃO. AF_12/2015 | C164: UN | D164: 5 | E164: 25.67 | F164: 128.35
A165: 12.12 | B165: TOMADA BAIXA DE EMBUTIR (2 MÓDULOS), 2P+T 10 A, INCLUINDO SUPORTE E PLACA - FORNECIMENTO E INSTALAÇÃO. AF_12/2015 | C165: UN | D165: 4 | E165: 41.15 | F165: 164.6
A166: 12.13 | B166: TOMADA ALTA DE EMBUTIR (1 MÓDULO), 2P+T 10 A, INCLUINDO SUPORTE E PLACA - FORNECIMENTO E INSTALAÇÃO. AF_12/2015 | C166: UN | D166: 9 | E166: 37.23 | F166: 335.07
A167: 12.14 | B167: RASGO EM ALVENARIA PARA ELETRODUTOS COM DIAMETROS MENORES OU IGUAIS A 40 MM. AF_05/2015 | C167: M | D167: 144 | E167: 6.08 | F167: 875.52
A168: 12.15 | B168: VENTILADOR DE TETO SIMPLES - FORNECIMENTO E INSTALAÇÃO | C168: UN | D168: 6 | E168: 198.57 | F168: 1191.42
A169: 12.16 | B169: VARIADOR DE VELOCIDADE PARA VENTILADOR 127V, 150W + 2 INTERRUPTORES PARALELOS, PARA REVERSAO E LAMPADA, CONJUNTO MONTADO PARA EMBUTIR 4" X 2" (PLACA + SUPORTE + MODULOS) | C169: UN | D169: 6 | E169: 66.2 | F169: =ROUND(D169*E169,2) -> 397.2
A170: 12.17 | B170: DISJUNTOR MONOPOLAR TIPO DIN, CORRENTE NOMINAL DE 10A - FORNECIMENTO E INSTALAÇÃO. AF_10/2020 | C170: UN | D170: 1 | E170: 14.01 | F170: 14.01
A171: 12.18 | B171: DISJUNTOR MONOPOLAR TIPO DIN, CORRENTE NOMINAL DE 16A - FORNECIMENTO E INSTALAÇÃO. AF_10/2020 | C171: UN | D171: 4 | E171: 14.57 | F171: 58.28
A172: 12.19 | B172: DISJUNTOR BIPOLAR TIPO DIN, CORRENTE NOMINAL DE 20A - FORNECIMENTO E INSTALAÇÃO. AF_10/2020 | C172: UN | D172: 2 | E172: 74.38 | F172: 148.76
A173: 12.20 | B173: Fornecimento e Instalação de Dispositivo DPS, 1 polo, 175 V, 45 kA | C173: UN | D173: 3 | E173: 137.39 | F173: 412.17
A174: 12.21 | B174: Fornecimento e Instalação de Dispositivo residual DR 25A, Fase/Neutro - In 30ma | C174: UN | D174: 1 | E174: 204.04 | F174: 204.04
A175: 12.22 | B175: ELETRODUTO FLEXÍVEL CORRUGADO, PVC, DN 25 MM (3/4"), PARA CIRCUITOS TERMINAIS, INSTALADO EM FORRO - FORNECIMENTO E INSTALAÇÃO. AF_12/2015 | C175: M | D175: 181.8 | E175: 8.82 | F175: =ROUND(D175*E175,2) -> 1603.48
A176: 12.23 | B176: LUMINÁRIA DE EMERGÊNCIA, COM 30 LÂMPADAS LED DE 2 W, SEM REATOR - FORNECIMENTO E INSTALAÇÃO. AF_02/2020 | C176: UN | D176: 3 | E176: 27.42 | F176: 82.26
A177: 12.24 | B177: LUMINARIA LED REFLETOR RETANGULAR BIVOLT, LUZ BRANCA, 50 W | C177: UN | D177: 2 | E177: 65.23 | F177: 130.46
A178: 12.25 | B178: DISJUNTOR TIPO NEMA, MONOPOLAR DE 60 ATE 70A, TENSAO MAXIMA DE 240 V | C178: UN | D178: 1 | E178: 50.99 | F178: =ROUND(D178*E178,2) -> 50.99
A179: 12.26 | B179: LUMINARIA DE TETO PLAFON/PLAFONIER EM PLASTICO COM BASE E27, POTENCIA 40 W (INCLUI LAMPADA LED) - FORNECIMENTO E INSTALAÇÃO | C179: UN | D179: 13 | E179: 93.5 | F179: 1215.5
A180: 12.27 | B180: QUADRO DE DISTRIBUIÇÃO BIFÁSICO EM PVC, 36 DISJUNTORES DIN | D180: 1 | E180: 670.34 | F180: 670.34
A181: 12.28 | B181: ENTRADA DE ENERGIA ELÉTRICA, AÉREA, BIFÁSICA, COM CAIXA DE SOBREPOR, CABO DE 10 MM2 E DISJUNTOR DIN 50A (NÃO INCLUSO O POSTE DE CONCRETO). AF_07/2020_P | C181: UN | D181: 1 | E181: 1600.67 | F181: 1600.67
A183: 13 | B183: SERVIÇOS COMPLEMENTARES | F183: =SUBTOTAL(9,F184:F186) -> 4841.12
A184: 13.1 | B184: CORRIMÃO SIMPLES, DIÂMETRO EXTERNO = 1 1/2", EM AÇO GALVANIZADO. AF_04/2019_P | C184: M | D184: 16 | E184: 144.84 | F184: =ROUND(D184*E184,2) -> 2317.44
A185: 13.2 | B185: RAMPA DE CONCRETO PARA ACESSO DE PNE (INCINAÇÃO 8%) | C185: M3 | D185: 3.636 | E185: 615.78 | F185: 2238.98
A186: 13.3 | B186: LASTRO COM MATERIAL GRANULAR (PEDRA BRITADA N.2), APLICADO EM PISOS OU LAJES SOBRE SOLO, ESPESSURA DE *10 CM*. AF_08/2017 | C186: M3 | D186: 2 | E186: 142.35 | F186: 284.7
A188: 14 | B188: LIMPEZA FINAL DE OBRA | F188: =SUBTOTAL(9,F189:F189) -> 738.71
A189: 14.1 | B189: LIMPEZA DE SUPERFÍCIE COM JATO DE ALTA PRESSÃO. AF_04/2019 | C189: M2 | D189: 427 | E189: 1.73 | F189: =ROUND(D189*E189,2) -> 738.71
A191: VALOR TOTAL | F191: =SUBTOTAL(9,F14:F190) -> 267397.67

Sheet CRONOGRAMA FISICO-FINANCEIRO
C1: CRONOGRAMA FÍSICO FINANCEIRO | J1: SPN-FF-004
J3: Folha: 1 de 1 | K3: Revisão: 01 | L3: Data: 11/07/19
A4: SESI - SERVIÇO SOCIAL DA INDÚSTRIA
A5: UNIDADE OPERACIONAL: SESI ESCOLA VÁRZEA GRANDE (OBRA REFORMA CENTRO COMUNITÁRIO STA LUZIA) | D5: ENDEREÇO: RUA MÁRIO DE ALMEIDA, LOTE 06, SANTA LUZIA | I5: CIDADE: VÁRZEA GRANDE/MT
A6: CONSTRUTORA: | D6: VALOR: | E6: =C29 -> 267397.67 | G6: PRAZO: 60 DIAS | I6: PROCESSO:
A7: RESPONSÁVEL TÉCNICO
A9: CRONOGRAMA FÍSICO-FINANCEIRO - OBRA:
A11: ITEM | B11: DESCRIÇÃO | C11: ETAPA TOTAL | E11: 30 DIAS | G11: 45 DIAS | I11: 60 DIAS | K11: TOTAL
C12: (R$) | D12: (%) | E12: (R$) | F12: (%) | G12: (R$) | H12: (%) | I12: (R$) | J12: (%) | K12: (R$) | L12: (%)
A13: 1 | B13: ='PLANILHA PADRÃO'!B14 -> ADMINISTRAÇÃO DE OBRA | C13: ='PLANILHA PADRÃO'!F14 -> 20018.48 | D13: =C13/$C$28 -> 0.07486407791 | E13: =F13*C13 -> 5004.62 | F13: 0.25 | G13: =H13*C13 -> 5004.62 | H13: 0.25 | I13: =J13*C13 -> 10009.24 | J13: 0.5 | K13: =SUM(E13+G13+I13) -> 20018.48 | L13: =K13/C13 -> 1
A14: 2 | B14: ='PLANILHA PADRÃO'!B18 -> CANTEIRO DE OBRAS | C14: ='PLANILHA PADRÃO'!F18 -> 12916.63 | D14: 0.04830494596 | E14: =F14*C14 -> 3229.1575 | F14: 0.25 | G14: 3229.1575 | H14: 0.25 | I14: 6458.315 | J14: 0.5 | K14: 12916.63 | L14: 1
A15: 3 | B15: ='PLANILHA PADRÃO'!B25 -> DEMOLIÇÕES | C15: ='PLANILHA PADRÃO'!F25 -> 10226.54 | D15: 0.03824468628 | E15: 10226.54 | F15: 1 | G15: 0 | H15: 0 | I15: 0 | J15: 0 | K15: 10226.54 | L15: 1
A16: 4 | B16: ='PLANILHA PADRÃO'!B42 -> FECHAMENTO | C16: ='PLANILHA PADRÃO'!F42 -> 3309.67 | D16: 0.01237733298 | E16: 1654.835 | F16: 0.5 | G16: 1654.835 | H16: 0.5 | I16: 0 | J16: 0 | K16: 3309.67 | L16: 1
A17: 5 | B17: ='PLANILHA PADRÃO'!B47 -> REVESTIMENTO INTERNO E EXTERNO | C17: ='PLANILHA PADRÃO'!F47 -> 22968.3 | D17: 0.08589566244 | E17: 9187.32 | F17: 0.4 | G17: 6890.49 | H17: 0.3 | I17: 6890.49 | J17: 0.3 | K17: 22968.3 | L17: 1
A18: 6 | B18: ='PLANILHA PADRÃO'!B54 -> COBERTURA | C18: ='PLANILHA PADRÃO'!F54 -> 45262.32 | D18: 0.1692696874 | E18: 18104.928 | F18: 0.4 | G18: 13578.696 | H18: 0.3 | I18: 13578.696 | J18: 0.3 | K18: 45262.32 | L18: 1
A19: 7 | B19: ='PLANILHA PADRÃO'!B64 -> PISO | C19: ='PLANILHA PADRÃO'!F64 -> 22682.11 | D19: 0.08482538386 | E19: 2268.211 | F19: 0.1 | G19: 9072.844 | H19: 0.4 | I19: 11341.055 | J19: 0.5 | K19: 22682.11 | L19: 1
A20: 8 | B20: ='PLANILHA PADRÃO'!B71 -> ESQUADRIA | C20: ='PLANILHA PADRÃO'!F71 -> 22856.62 | D20: 0.08547800734 | E20: 0 | F20: 0 | G20: 11428.31 | H20: 0.5 | I20: 11428.31 | J20: 0.5 | K20: 22856.62 | L20: 1
A21: 9 | B21: ='PLANILHA PADRÃO'!B78 -> PINTURA INTERNA E EXTERNA | C21: ='PLANILHA PADRÃO'!F78 -> 52405.06 | D21: 0.1959817376 | E21: 0 | F21: 0 | G21: 20962.024 | H21: 0.4 | I21: 31443.036 | J21: 0.6 | K21: 52405.06 | L21: 1
A22: 10 | B22: ='PLANILHA PADRÃO'!B94 -> INSTALAÇÕES SANITÁRIAS | C22: ='PLANILHA PADRÃO'!F94 -> 14593.99 | D22: 0.05457785029 | E22: 14593.99 | F22: 1 | G22: 0 | H22: 0 | I22: 0 | J22: 0 | K22: 14593.99 | L22: 1
A23: 11 | B23: ='PLANILHA PADRÃO'!B117 -> INSTALAÇÕES HIDRÁULICAS | C23: ='PLANILHA PADRÃO'!F117 -> 17769.84 | D23: 0.06645473014 | E23: 17769.84 | F23: 1 | G23: 0 | H23: 0 | I23: 0 | J23: 0 | K23: 17769.84 | L23: 1
A24: 12 | B24: ='PLANILHA PADRÃO'!B153 -> INSTALAÇÕES ELÉTRICAS | C24: ='PLANILHA PADRÃO'!F153 -> 16808.28 | D24: 0.0628587377 | E24: 8404.14 | F24: 0.5 | G24: 4202.07 | H24: 0.25 | I24: 4202.07 | J24: 0.25 | K24: 16808.28 | L24: 1
A25: 13 | B25: ='PLANILHA PADRÃO'!B183 -> SERVIÇOS COMPLEMENTARES | C25: ='PLANILHA PADRÃO'!F183 -> 4841.12 | D25: 0.01810457062 | E25: 0 | F25: 0 | G25: 1210.28 | H25: 0.25 | I25: 3630.84 | J25: 0.75 | K25: 4841.12 | L25: 1
A26: 14 | B26: ='PLANILHA PADRÃO'!B188 -> LIMPEZA FINAL DE OBRA | C26: ='PLANILHA PADRÃO'!F188 -> 738.71 | D26: 0.002762589517 | E26: 0 | F26: 0 | G26: 0 | H26: 0 | I26: 738.71 | J26: 1 | K26: 738.71 | L26: 1
B28: TOTAL | C28: =SUM(C13:C26) -> 267397.67 | D28: =SUM(D13:D26) -> 1 | E28: =SUM(E13:E26) -> 90443.5815 | F28: =E28/C29 -> 0.3382362363 | G28: =SUM(G13:G26) -> 77233.3265 | H28: =G28/C29 -> 0.2888332067 | I28: =SUM(I13:I26) -> 99720.762 | J28: =I28/C29 -> 0.3729305569 | K28: =SUM(K13:K26) -> 267397.67 | L28: =K28/K29 -> 1
B29: TOTAL ACUMULADO | C29: =C28 -> 267397.67 | D29: =D28 -> 1 | E29: =E28 -> 90443.5815 | F29: =F28 -> 0.3382362363 | G29: =G28+E29 -> 167676.908 | H29: =H28+F29 -> 0.6270694431 | I29: =I28+G29 -> 267397.67 | J29: =J28+H29 -> 1 | K29: =K28 -> 267397.67 | L29: =L28 -> 1

Sheet COMPOSIÇÃO DO BDI
A2: COMPOSIÇÃO DO BDI OBRAS DE ENGENHARIA
A6: DESCRIÇÃO | C6: %
A7: GRUPO A
A8: A1 | B8: (AC) ADMINISTRAÇÃO CENTRAL - VARIA CONFORME O PORTE DA NÚMERO DE OBRAS EM ANDAMENTO, VOLUME FINANCEIRO DAS OBRAS A INICIAREM, ETC, EM CADA EM CADA EMPRESA - (ACORDAO 2622/2013 - 3,0% A 5,5%) | C8: =ROUND(AVERAGE(3%,5.5%),4) -> 0.0425
B9: TOTAL DO GRUPO A = | C9: =SUM(C8) -> 0.0425
A11: GRUPO B
A12: B1 | B12: (DF) DESPESAS FINANCEIRAS - (ACORDAO 2622/2013 - 0,59% A 1,39%) | C12: =ROUND(AVERAGE(0.59%,1.39%),4) -> 0.0099 | D12: ***deve estar dentro da média dos ultimos 3 meses antecedentes ao contrato
A13: B2 | B13: (S) SEGUROS - (ACORDAO 2622/2013 SEGURO + GARANTIA - 0,8% A 1,0%) | C13: =ROUND(AVERAGE(0.4%,0.5%),4) -> 0.0045
A14: B2 | B14: (G) GARANTIAS - (ACORDAO 2622/2013 SEGURO + GARANTIA - 0,8% A 1,0%) | C14: =ROUND(AVERAGE(0.4%,0.5%),4) -> 0.0045
A15: B3 | B15: (R) TAXA DE RISCO E IMPREVISTOS - (ACORDAO 2622/2013 0,97% A 1,27%) | C15: =ROUND(AVERAGE(0.97%,1.27%),4) -> 0.0112
A16: B4 | B16: (L) LUCRO (ACORDAO 2622/2013 6,16% A 8,96%) | C16: =ROUND(AVERAGE(6.16%,8.96%),4) -> 0.0756
B17: TOTAL DO GRUPO B = | C17: =SUM(C12:C16) -> 0.1057
A19: GRUPO C
A20: C1 | B20: ISS - (ISS% SOBRE 40% DE MÃO DE OBRA)
A21: C2 | B21: %MÃO DE OBRA | C21: 0.4
A22: C3 | B22: ISS DO MUNICÍPIO | C22: 0.05
A23: C4 | B23: SUBTOTAL ISS (C2 X C3) = | C23: =C22*C21 -> 0.02
A24: C5 | B24: PIS | C24: 0.0065
A25: C6 | B25: COFINS | C25: 0.03
B26: TOTAL DO GRUPO C = | C26: =SUM(C23:C25) -> 0.0565
A28: TOTAL BDI (FORMULA ACORDAO 2369/2011) | C28: =ROUND((1+C8+C13+C15+C14)*(1+C12)*(1+C16)/(1-C26)-1,4) -> 0.2235
A29: BDI = (1+AC+S+R+G)x(1+DF)X(1+L)) -1 1-I Onde: AC = taxa representativa das despesas de rateio da Administração Central; S = taxa representativa de Seguros; R = taxa representativa de Riscos; G = taxa representativa de Garantias; DF = taxa representativa das Despesas Financeiras; L = taxa representativa do Lucro; I = taxa representativa da incidência de Impostos. Observação: i) Composição do BDI, intervalos admissíveis e Fórmula de cálculo nos termos do Acórdão 2622/2013 do TCU.

Sheet COMPOSIÇÃO DO BDI EQUIPAMENTO
A2: COMPOSIÇÃO DO BDI REDUZIDO
A6: DESCRIÇÃO | C6: %
A7: GRUPO A
A8: A1 | B8: (AC) ADMINISTRAÇÃO CENTRAL - VARIA CONFORME O PORTE DA NÚMERO DE OBRAS EM ANDAMENTO, VOLUME FINANCEIRO DAS OBRAS A INICIAREM, ETC, EM CADA EM CADA EMPRESA - (ACORDAO 2622/2013 - 1,5% A 4,49%) | C8: =ROUND(AVERAGE(1.5%,4.49%),4) -> 0.03
B9: TOTAL DO GRUPO A = | C9: =SUM(C8) -> 0.03
A11: GRUPO B
A12: B1 | B12: (DF) DESPESAS FINANCEIRAS - (ACORDAO 2622/2013 - 0,85% A 1,11%) | C12: =ROUND(AVERAGE(0.85%,1.11%),4) -> 0.0098
A13: B2 | B13: (S) SEGUROS - (ACORDAO 2622/2013 SEGURO + GARANTIA - 0,3% A 0,82%) | C13: =ROUND(AVERAGE(0.3%/2,0.82%/2),4) -> 0.0028
A14: B2 | B14: (G) GARANTIAS - (ACORDAO 2622/2013 SEGURO + GARANTIA - 0,3% A 0,82%) | C14: =ROUND(AVERAGE(0.3%/2,0.82%/2),4) -> 0.0028
A15: B3 | B15: (R) TAXA DE RISCO E IMPREVISTOS - (ACORDAO 2622/2013 0,56% A 0,89%) | C15: =ROUND(AVERAGE(0.56%,0.89%),4) -> 0.0073
A16: B4 | B16: (L) LUCRO (ACORDAO 2622/2013 3,50% A 6,22%) | C16: =ROUND(AVERAGE(3.5%,6.22%),4) -> 0.0486
B17: TOTAL DO GRUPO B = | C17: =SUM(C12:C16) -> 0.0713
A19: GRUPO C
A20: C1 | B20: ISS - (ISS% SOBRE 40% DE MÃO DE OBRA)
A21: C2 | B21: %MÃO DE OBRA | C21: 0
A22: C3 | B22: ISS DO MUNICÍPIO | C22: 0.05
A23: C4 | B23: SUBTOTAL ISS (C2 X C3) = | C23: =C22*C21 -> 0
A24: C5 | B24: PIS | C24: 0.0065
A25: C6 | B25: COFINS | C25: 0.03
B26: TOTAL DO GRUPO C = | C26: =SUM(C23:C25) -> 0.0365
A28: TOTAL BDI (ACORDAO 2369/2011) | C28: =ROUND((1+C8+C13+C15+C14)*(1+C12)*(1+C16)/(1-C26)-1,4) -> 0.1461
A29: BDI = (1+AC+S+R+G)x(1+DF)X(1+L)) -1 1-I Onde: AC = taxa representativa das despesas de rateio da Administração Central; S = taxa representativa de Seguros; R = taxa representativa de Riscos; G = taxa representativa de Garantias; DF = taxa representativa das Despesas Financeiras; L = taxa representativa do Lucro; I = taxa representativa da incidência de Impostos. Observação: i) Composição do BDI, intervalos admissíveis e Fórmula de cálculo nos termos do Acórdão 2622/2013 do TCU.
